[Event "Titled Tuesday Blitz September 21 2021"]
[White "Srihari L R"]
[Black "Kushko, Dmitriy"]
[WhiteFideId "46617116"]
[BlackFideId "14162261"]
[WhiteElo "2121"]
[BlackElo "2219"]
[Result "1-0"]
[Round "04"]
[TimeControl "180+1"]
[Date "2021.09.21"]
[WhiteClock "0:01:19"]
[BlackClock "0:00:12"]

1. d4 {[%clk 0:02:58]}  Nf6 {[%clk 0:02:59]} 2. Bg5 {[%clk 0:02:57]}  Ne4 {[%clk 0:02:54]} 3. Bf4 {[%clk 0:02:56]}  d5 {[%clk 0:02:54]} 4. f3 {[%clk 0:02:47]}  Nf6 {[%clk 0:02:43]} 5. e4 {[%clk 0:02:46]}  e6 {[%clk 0:02:38]} 6. e5 {[%clk 0:02:43]}  Nfd7 {[%clk 0:02:36]} 7. Be3 {[%clk 0:02:43]}  b6 {[%clk 0:02:32]} 8. f4 {[%clk 0:02:39]}  Ba6 {[%clk 0:02:31]} 9. Bxa6 {[%clk 0:02:38]}  Nxa6 {[%clk 0:02:32]} 10. Nf3 {[%clk 0:02:37]}  c5 {[%clk 0:02:31]} 11. c3 {[%clk 0:02:36]}  g6 {[%clk 0:02:23]} 12. O-O {[%clk 0:02:35]}  h5 {[%clk 0:02:19]} 13. Ng5 {[%clk 0:02:32]}  Be7 {[%clk 0:02:17]} 14. Qd3 {[%clk 0:02:20]}  c4 {[%clk 0:02:04]} 15. Qc2 {[%clk 0:02:17]}  Bxg5 {[%clk 0:02:00]} 16. fxg5 {[%clk 0:02:16]}  Qe7 {[%clk 0:01:49]} 17. Nd2 {[%clk 0:02:15]}  O-O {[%clk 0:01:36]} 18. Nf3 {[%clk 0:02:05]}  b5 {[%clk 0:01:34]} 19. a3 {[%clk 0:02:04]}  Nc7 {[%clk 0:01:28]} 20. Nh4 {[%clk 0:02:03]}  Kh7 {[%clk 0:01:02]} 21. Rf6 {[%clk 0:01:53]}  Rg8 {[%clk 0:00:34]} 22. Raf1 {[%clk 0:01:43]}  Raf8 {[%clk 0:00:29]} 23. Qf2 {[%clk 0:01:41]}  Nxf6 {[%clk 0:00:21]} 24. gxf6 {[%clk 0:01:39]}  Qe8 {[%clk 0:00:19]} 25. Nf3 {[%clk 0:01:32]}  g5 {[%clk 0:00:19]} 26. Nxg5+ {[%clk 0:01:32]}  Rxg5 {[%clk 0:00:19]} 27. Bxg5 {[%clk 0:01:31]}  Rg8 {[%clk 0:00:17]} 28. Qh4 {[%clk 0:01:32]}  Rg6 {[%clk 0:00:14]} 29. Qxh5+ {[%clk 0:01:30]}  Kg8 {[%clk 0:00:15]} 30. Rf3 {[%clk 0:01:29]}  Qc6 {[%clk 0:00:11]} 31. Rh3 {[%clk 0:01:29]}  Kf8 {[%clk 0:00:12]} 32. Qh8+ {[%clk 0:01:28]}  Rg8 {[%clk 0:00:12]} 33. Bh6+ {[%clk 0:01:19]} 1-0


[Site "https://www.chess.com"]

[Event "Titled Tuesday Blitz September 21 2021"]
[White "Suarez Gomez, Julio"]
[Black "Xiong, Jeffery"]
[WhiteFideId "22275991"]
[BlackFideId "2047640"]
[WhiteElo "2750"]
[BlackElo "2945"]
[Result "1-0"]
[Round "04"]
[TimeControl "180+1"]
[Date "2021.09.21"]
[WhiteClock "0:00:50"]
[BlackClock "0:00:45"]

1. e4 {[%clk 0:03:00]}  c6 {[%clk 0:03:00]} 2. d4 {[%clk 0:03:00]}  d5 {[%clk 0:03:00]} 3. Nc3 {[%clk 0:03:01]}  dxe4 {[%clk 0:03:01]} 4. Nxe4 {[%clk 0:03:02]}  Nf6 {[%clk 0:03:01]} 5. Nxf6+ {[%clk 0:03:02]}  exf6 {[%clk 0:03:02]} 6. c3 {[%clk 0:03:02]}  Bd6 {[%clk 0:03:03]} 7. Bd3 {[%clk 0:03:03]}  O-O {[%clk 0:03:04]} 8. Qc2 {[%clk 0:03:02]}  Re8+ {[%clk 0:03:05]} 9. Ne2 {[%clk 0:03:02]}  h5 {[%clk 0:03:06]} 10. O-O {[%clk 0:03:03]}  h4 {[%clk 0:03:06]} 11. h3 {[%clk 0:03:03]}  Nd7 {[%clk 0:03:07]} 12. Be3 {[%clk 0:03:04]}  Nf8 {[%clk 0:03:07]} 13. Rad1 {[%clk 0:03:04]}  Be6 {[%clk 0:03:08]} 14. c4 {[%clk 0:03:04]}  Rc8 {[%clk 0:03:08]} 15. Rfe1 {[%clk 0:02:25]}  Bb8 {[%clk 0:03:08]} 16. Nf4 {[%clk 0:02:22]}  Qc7 {[%clk 0:03:07]} 17. Kf1 {[%clk 0:02:01]}  Bd7 {[%clk 0:03:07]} 18. b3 {[%clk 0:01:58]}  Ne6 {[%clk 0:03:07]} 19. Nxe6 {[%clk 0:01:52]}  Bxe6 {[%clk 0:03:08]} 20. f4 {[%clk 0:01:44]}  b5 {[%clk 0:02:43]} 21. Bh7+ {[%clk 0:01:39]}  Kh8 {[%clk 0:02:41]} 22. Bf5 {[%clk 0:01:39]}  bxc4 {[%clk 0:02:40]} 23. bxc4 {[%clk 0:01:36]}  Rcd8 {[%clk 0:02:30]} 24. Kg1 {[%clk 0:01:31]}  a6 {[%clk 0:02:20]} 25. Rb1 {[%clk 0:01:28]}  Qa5 {[%clk 0:02:09]} 26. Bd3 {[%clk 0:01:26]}  Ba7 {[%clk 0:02:03]} 27. Qf2 {[%clk 0:01:26]}  Kg8 {[%clk 0:01:18]} 28. Qxh4 {[%clk 0:01:26]}  Bf5 {[%clk 0:01:18]} 29. Bxf5 {[%clk 0:01:20]}  Qxf5 {[%clk 0:01:19]} 30. Bf2 {[%clk 0:01:20]}  Qd3 {[%clk 0:01:06]} 31. c5 {[%clk 0:01:18]}  Bb8 {[%clk 0:01:01]} 32. Qg3 {[%clk 0:01:16]}  Qd2 {[%clk 0:00:59]} 33. Qf3 {[%clk 0:00:59]}  Qxf4 {[%clk 0:00:59]} 34. Rxe8+ {[%clk 0:00:55]}  Rxe8 {[%clk 0:00:58]} 35. Qxf4 {[%clk 0:00:56]}  Bxf4 {[%clk 0:00:59]} 36. Rb6 {[%clk 0:00:57]}  Re6 {[%clk 0:00:43]} 37. Rxa6 {[%clk 0:00:57]}  f5 {[%clk 0:00:44]} 38. a4 {[%clk 0:00:53]}  g5 {[%clk 0:00:44]} 39. a5 {[%clk 0:00:51]}  g4 {[%clk 0:00:44]} 40. hxg4 {[%clk 0:00:50]}  fxg4 {[%clk 0:00:45]} 41. g3 {[%clk 0:00:51]}  Bd2 {[%clk 0:00:45]} 42. Ra8+ {[%clk 0:00:50]}  Kh7 {[%clk 0:00:45]} 43. a6 {[%clk 0:00:50]} 1-0


[Site "https://www.chess.com"]

[Event "Titled Tuesday Blitz September 21 2021"]
[White "Svane, Rasmus"]
[Black "Gelman, Alexander"]
[WhiteFideId "4657101"]
[BlackFideId "4118316"]
[WhiteElo "2643"]
[BlackElo "2375"]
[Result "1-0"]
[Round "04"]
[TimeControl "180+1"]
[Date "2021.09.21"]
[WhiteClock "0:00:10"]
[BlackClock "0:00:01"]

1. Nf3 {[%clk 0:03:00]}  c5 {[%clk 0:02:59]} 2. c4 {[%clk 0:02:59]}  Nf6 {[%clk 0:02:59]} 3. Nc3 {[%clk 0:02:58]}  d6 {[%clk 0:03:00]} 4. d4 {[%clk 0:02:57]}  cxd4 {[%clk 0:03:00]} 5. Nxd4 {[%clk 0:02:58]}  e6 {[%clk 0:03:01]} 6. g3 {[%clk 0:02:58]}  a6 {[%clk 0:03:01]} 7. Bg2 {[%clk 0:02:57]}  Be7 {[%clk 0:03:02]} 8. O-O {[%clk 0:02:57]}  O-O {[%clk 0:03:02]} 9. b3 {[%clk 0:02:57]}  Nbd7 {[%clk 0:03:02]} 10. Bb2 {[%clk 0:02:56]}  Qc7 {[%clk 0:03:03]} 11. e3 {[%clk 0:02:56]}  Ne5 {[%clk 0:03:03]} 12. Rc1 {[%clk 0:02:52]}  Bd7 {[%clk 0:03:03]} 13. f4 {[%clk 0:02:52]}  Ng6 {[%clk 0:03:03]} 14. g4 {[%clk 0:02:49]}  h6 {[%clk 0:03:01]} 15. Qf3 {[%clk 0:02:06]}  Rab8 {[%clk 0:02:59]} 16. Qg3 {[%clk 0:02:04]}  Qa5 {[%clk 0:02:34]} 17. h4 {[%clk 0:01:54]}  b5 {[%clk 0:02:34]} 18. g5 {[%clk 0:01:49]}  hxg5 {[%clk 0:02:31]} 19. fxg5 {[%clk 0:01:29]}  Nh7 {[%clk 0:02:25]} 20. h5 {[%clk 0:01:18]}  Ne5 {[%clk 0:02:25]} 21. c5 {[%clk 0:01:17]}  Nd3 {[%clk 0:02:03]} 22. cxd6 {[%clk 0:01:10]}  Bxg5 {[%clk 0:02:03]} 23. Ne4 {[%clk 0:01:09]}  Bh6 {[%clk 0:01:19]} 24. Nc6 {[%clk 0:01:02]}  Qb6 {[%clk 0:00:46]} 25. Bd4 {[%clk 0:00:55]}  Nxc1 {[%clk 0:00:41]} 26. Rxc1 {[%clk 0:00:54]}  Qxc6 {[%clk 0:00:19]} 27. Rxc6 {[%clk 0:00:53]}  Bxc6 {[%clk 0:00:19]} 28. Bxg7 {[%clk 0:00:54]}  Bxe3+ {[%clk 0:00:14]} 29. Kh1 {[%clk 0:00:49]}  Bf4 {[%clk 0:00:14]} 30. Qxf4 {[%clk 0:00:20]}  Kxg7 {[%clk 0:00:14]} 31. h6+ {[%clk 0:00:17]}  Kh8 {[%clk 0:00:12]} 32. Nf6 {[%clk 0:00:15]}  Bxg2+ {[%clk 0:00:11]} 33. Kxg2 {[%clk 0:00:16]}  Rg8+ {[%clk 0:00:05]} 34. Nxg8 {[%clk 0:00:15]}  Rxg8+ {[%clk 0:00:06]} 35. Kf1 {[%clk 0:00:13]}  Rd8 {[%clk 0:00:02]} 36. Ke2 {[%clk 0:00:10]}  Nf8 {[%clk 0:00:01]} 37. Qf6+ {[%clk 0:00:10]} 1-0


[Site "https://www.chess.com"]

[Event "Titled Tuesday Blitz September 21 2021"]
[White "Tanenbaum, Zachary"]
[Black "Gracia Alvarez, Gerardo Antonio"]
[WhiteFideId "2060850"]
[BlackFideId "5109124"]
[WhiteElo "2165"]
[BlackElo "2148"]
[Result "1-0"]
[Round "04"]
[TimeControl "180+1"]
[Date "2021.09.21"]
[WhiteClock "0:00:09"]
[BlackClock "0:00:01"]

1. e4 {[%clk 0:02:59]}  c5 {[%clk 0:02:59]} 2. Nf3 {[%clk 0:03:00]}  Nc6 {[%clk 0:03:00]} 3. Nc3 {[%clk 0:03:00]}  Nf6 {[%clk 0:02:58]} 4. Bb5 {[%clk 0:03:00]}  Nd4 {[%clk 0:02:45]} 5. e5 {[%clk 0:03:00]}  Ng8 {[%clk 0:02:45]} 6. Bc4 {[%clk 0:02:34]}  e6 {[%clk 0:02:42]} 7. O-O {[%clk 0:02:29]}  d5 {[%clk 0:02:36]} 8. exd6 {[%clk 0:02:11]}  Bxd6 {[%clk 0:02:30]} 9. Ne4 {[%clk 0:02:10]}  Be7 {[%clk 0:02:28]} 10. Nxd4 {[%clk 0:02:09]}  cxd4 {[%clk 0:02:24]} 11. d3 {[%clk 0:02:06]}  Nf6 {[%clk 0:02:24]} 12. Bf4 {[%clk 0:01:47]}  O-O {[%clk 0:02:20]} 13. Qf3 {[%clk 0:01:46]}  Qb6 {[%clk 0:01:55]} 14. Bb3 {[%clk 0:01:42]}  Bd7 {[%clk 0:01:50]} 15. Be5 {[%clk 0:01:25]}  Bc6 {[%clk 0:01:23]} 16. Bxf6 {[%clk 0:01:22]}  Bxe4 {[%clk 0:01:23]} 17. Bxd4 {[%clk 0:01:00]}  Bxf3 {[%clk 0:01:19]} 18. Bxb6 {[%clk 0:00:59]}  Bxg2 {[%clk 0:01:19]} 19. Kxg2 {[%clk 0:00:55]}  axb6 {[%clk 0:01:19]} 20. d4 {[%clk 0:00:47]}  Rfd8 {[%clk 0:01:17]} 21. c3 {[%clk 0:00:46]}  b5 {[%clk 0:01:17]} 22. a3 {[%clk 0:00:46]}  Kf8 {[%clk 0:01:06]} 23. Rae1 {[%clk 0:00:45]}  Bd6 {[%clk 0:01:04]} 24. Bc2 {[%clk 0:00:28]}  g6 {[%clk 0:01:03]} 25. Bd3 {[%clk 0:00:26]}  b4 {[%clk 0:00:54]} 26. axb4 {[%clk 0:00:25]}  Ra2 {[%clk 0:00:54]} 27. Rb1 {[%clk 0:00:25]}  Kg7 {[%clk 0:00:40]} 28. Bc4 {[%clk 0:00:25]}  Ra7 {[%clk 0:00:39]} 29. Rbe1 {[%clk 0:00:21]}  h5 {[%clk 0:00:35]} 30. Re3 {[%clk 0:00:21]}  b6 {[%clk 0:00:31]} 31. Rd1 {[%clk 0:00:21]}  Rc8 {[%clk 0:00:24]} 32. Bb3 {[%clk 0:00:20]}  Bf4 {[%clk 0:00:24]} 33. Rf3 {[%clk 0:00:20]}  Bd6 {[%clk 0:00:23]} 34. h3 {[%clk 0:00:20]}  Rac7 {[%clk 0:00:21]} 35. Ra1 {[%clk 0:00:19]}  Rb7 {[%clk 0:00:18]} 36. Ra6 {[%clk 0:00:18]}  Rbb8 {[%clk 0:00:18]} 37. Ra7 {[%clk 0:00:18]}  Rc7 {[%clk 0:00:18]} 38. Ra6 {[%clk 0:00:18]}  Rcc8 {[%clk 0:00:19]} 39. Rd3 {[%clk 0:00:17]}  Rc7 {[%clk 0:00:18]} 40. Rd1 {[%clk 0:00:17]}  Kf6 {[%clk 0:00:15]} 41. Rda1 {[%clk 0:00:18]}  Kf5 {[%clk 0:00:15]} 42. Ra7 {[%clk 0:00:18]}  Rxa7 {[%clk 0:00:13]} 43. Rxa7 {[%clk 0:00:19]}  Kf6 {[%clk 0:00:14]} 44. Kf3 {[%clk 0:00:19]}  h4 {[%clk 0:00:14]} 45. Ke4 {[%clk 0:00:17]}  g5 {[%clk 0:00:13]} 46. Ra6 {[%clk 0:00:14]}  Bc7 {[%clk 0:00:12]} 47. Ra7 {[%clk 0:00:14]}  Bd6 {[%clk 0:00:12]} 48. Bd1 {[%clk 0:00:15]}  Kg6 {[%clk 0:00:10]} 49. Be2 {[%clk 0:00:14]}  Bf4 {[%clk 0:00:09]} 50. Kd3 {[%clk 0:00:13]}  Bd6 {[%clk 0:00:09]} 51. Kc4 {[%clk 0:00:13]}  f5 {[%clk 0:00:06]} 52. Kb5 {[%clk 0:00:11]}  Rh8 {[%clk 0:00:06]} 53. Kc6 {[%clk 0:00:11]}  Bf4 {[%clk 0:00:05]} 54. Re7 {[%clk 0:00:11]}  Kf6 {[%clk 0:00:05]} 55. Kd7 {[%clk 0:00:11]}  Bd2 {[%clk 0:00:03]} 56. Rxe6+ {[%clk 0:00:11]}  Kf7 {[%clk 0:00:04]} 57. Bc4 {[%clk 0:00:10]}  Kg7 {[%clk 0:00:04]} 58. Re7+ {[%clk 0:00:11]}  Kg6 {[%clk 0:00:04]} 59. Bd3 {[%clk 0:00:08]}  Kf6 {[%clk 0:00:02]} 60. Re6+ {[%clk 0:00:08]}  Kf7 {[%clk 0:00:01]} 61. Bxf5 {[%clk 0:00:09]}  g4 {[%clk 0:00:01]} 62. Bxg4 {[%clk 0:00:09]}  Be1 {[%clk 0:00:01]} 1-0


[Site "https://www.chess.com"]

[Event "Titled Tuesday Blitz September 21 2021"]
[White "Tang, Andrew"]
[Black "Hambleton, Aman"]
[WhiteFideId "2059630"]
[BlackFideId "2606577"]
[WhiteElo "2986"]
[BlackElo "2766"]
[Result "1-0"]
[Round "04"]
[TimeControl "180+1"]
[Date "2021.09.21"]
[WhiteClock "0:00:07"]
[BlackClock "0:00:04"]

1. d4 {[%clk 0:03:00]}  Nf6 {[%clk 0:02:59]} 2. c4 {[%clk 0:02:59]}  e6 {[%clk 0:02:55]} 3. Nc3 {[%clk 0:02:59]}  Bb4 {[%clk 0:02:55]} 4. Qc2 {[%clk 0:02:59]}  c5 {[%clk 0:02:30]} 5. dxc5 {[%clk 0:02:58]}  Bxc5 {[%clk 0:02:23]} 6. Nf3 {[%clk 0:02:56]}  Qb6 {[%clk 0:02:12]} 7. e3 {[%clk 0:02:57]}  Qc7 {[%clk 0:02:07]} 8. g4 {[%clk 0:02:57]}  h6 {[%clk 0:01:53]} 9. Rg1 {[%clk 0:02:56]}  Nc6 {[%clk 0:01:40]} 10. h4 {[%clk 0:02:47]}  b6 {[%clk 0:01:23]} 11. a3 {[%clk 0:02:45]}  Bb7 {[%clk 0:01:19]} 12. g5 {[%clk 0:02:30]}  hxg5 {[%clk 0:01:20]} 13. hxg5 {[%clk 0:02:31]}  Nh5 {[%clk 0:01:15]} 14. Be2 {[%clk 0:02:06]}  Ne5 {[%clk 0:00:54]} 15. Nxe5 {[%clk 0:02:01]}  Qxe5 {[%clk 0:00:55]} 16. f4 {[%clk 0:01:58]}  Qc7 {[%clk 0:00:41]} 17. b4 {[%clk 0:01:57]}  Be7 {[%clk 0:00:29]} 18. Bb2 {[%clk 0:01:50]}  a6 {[%clk 0:00:22]} 19. O-O-O {[%clk 0:01:44]}  O-O-O {[%clk 0:00:23]} 20. Kb1 {[%clk 0:01:44]}  Kb8 {[%clk 0:00:18]} 21. Rd2 {[%clk 0:01:43]}  d6 {[%clk 0:00:14]} 22. Ka1 {[%clk 0:01:37]}  g6 {[%clk 0:00:11]} 23. b5 {[%clk 0:01:25]}  a5 {[%clk 0:00:08]} 24. Na4 {[%clk 0:01:25]}  e5 {[%clk 0:00:06]} 25. Rgd1 {[%clk 0:01:18]}  f6 {[%clk 0:00:06]} 26. Qxg6 {[%clk 0:01:17]}  Ng3 {[%clk 0:00:04]} 27. gxf6 {[%clk 0:01:16]}  Rhg8 {[%clk 0:00:01]} 28. Qf7 {[%clk 0:01:15]}  Bf8 {[%clk 0:00:01]} 29. Qxc7+ {[%clk 0:01:14]}  Kxc7 {[%clk 0:00:01]} 30. fxe5 {[%clk 0:01:13]}  Nxe2 {[%clk 0:00:01]} 31. e6 {[%clk 0:01:03]}  Bf3 {[%clk 0:00:01]} 32. e7 {[%clk 0:01:00]}  Bxe7 {[%clk 0:00:02]} 33. fxe7 {[%clk 0:01:01]}  Rd7 {[%clk 0:00:02]} 34. Rf1 {[%clk 0:01:01]}  Bh5 {[%clk 0:00:02]} 35. Bf6 {[%clk 0:00:56]}  Re8 {[%clk 0:00:02]} 36. Bh4 {[%clk 0:00:55]}  Rdxe7 {[%clk 0:00:01]} 37. Bxe7 {[%clk 0:00:55]}  Rxe7 {[%clk 0:00:02]} 38. Rf5 {[%clk 0:00:53]}  Ng3 {[%clk 0:00:02]} 39. Rg5 {[%clk 0:00:51]}  Ne4 {[%clk 0:00:03]} 40. Rdd5 {[%clk 0:00:43]}  Nxg5 {[%clk 0:00:03]} 41. Rxg5 {[%clk 0:00:44]}  Bf7 {[%clk 0:00:04]} 42. Rg7 {[%clk 0:00:39]}  Rd7 {[%clk 0:00:03]} 43. Kb2 {[%clk 0:00:36]}  Be6 {[%clk 0:00:01]} 44. Rxd7+ {[%clk 0:00:36]}  Bxd7 {[%clk 0:00:02]} 45. Nc3 {[%clk 0:00:33]}  Be6 {[%clk 0:00:02]} 46. Nd5+ {[%clk 0:00:31]}  Bxd5 {[%clk 0:00:02]} 47. cxd5 {[%clk 0:00:32]}  Kd7 {[%clk 0:00:03]} 48. Kc3 {[%clk 0:00:30]}  Ke7 {[%clk 0:00:03]} 49. Kd4 {[%clk 0:00:29]}  Kf6 {[%clk 0:00:04]} 50. e4 {[%clk 0:00:19]}  a4 {[%clk 0:00:03]} 51. Kd3 {[%clk 0:00:19]}  Kg6 {[%clk 0:00:01]} 52. Ke3 {[%clk 0:00:19]}  Kg5 {[%clk 0:00:01]} 53. Kf3 {[%clk 0:00:15]}  Kg6 {[%clk 0:00:01]} 54. Kg4 {[%clk 0:00:16]}  Kf6 {[%clk 0:00:01]} 55. Kf4 {[%clk 0:00:16]}  Kg6 {[%clk 0:00:01]} 56. e5 {[%clk 0:00:17]}  Kf7 {[%clk 0:00:02]} 57. exd6 {[%clk 0:00:16]}  Ke8 {[%clk 0:00:02]} 58. Kf5 {[%clk 0:00:16]}  Kd8 {[%clk 0:00:01]} 59. Ke6 {[%clk 0:00:11]}  Ke8 {[%clk 0:00:01]} 60. d7+ {[%clk 0:00:09]}  Kd8 {[%clk 0:00:02]} 61. Ke5 {[%clk 0:00:08]}  Kxd7 {[%clk 0:00:01]} 62. d6 {[%clk 0:00:06]}  Kd8 {[%clk 0:00:02]} 63. Ke4 {[%clk 0:00:03]}  Ke8 {[%clk 0:00:02]} 64. Kd4 {[%clk 0:00:04]}  Kd8 {[%clk 0:00:02]} 65. Kd5 {[%clk 0:00:04]}  Kd7 {[%clk 0:00:02]} 66. Ke5 {[%clk 0:00:04]}  Kd8 {[%clk 0:00:03]} 67. Ke6 {[%clk 0:00:05]}  Ke8 {[%clk 0:00:03]} 68. d7+ {[%clk 0:00:03]}  Kd8 {[%clk 0:00:04]} 69. Ke5 {[%clk 0:00:03]}  Kxd7 {[%clk 0:00:01]} 70. Kd5 {[%clk 0:00:04]}  Kc7 {[%clk 0:00:02]} 71. Ke6 {[%clk 0:00:04]}  Kc8 {[%clk 0:00:02]} 72. Kd6 {[%clk 0:00:04]}  Kb7 {[%clk 0:00:02]} 73. Kd7 {[%clk 0:00:05]}  Kb8 {[%clk 0:00:03]} 74. Kc6 {[%clk 0:00:05]}  Ka8 {[%clk 0:00:02]} 75. Kxb6 {[%clk 0:00:05]}  Kb8 {[%clk 0:00:03]} 76. Ka5 {[%clk 0:00:05]}  Kb7 {[%clk 0:00:03]} 77. Kxa4 {[%clk 0:00:06]}  Kb6 {[%clk 0:00:04]} 78. Kb4 {[%clk 0:00:07]} 1-0


[Site "https://www.chess.com"]

[Event "Titled Tuesday Blitz September 21 2021"]
[White "Tasev, Dejan"]
[Black "Stoyanov, Tsvetan"]
[WhiteFideId "936618"]
[BlackFideId "2917173"]
[WhiteElo "2253"]
[BlackElo "2191"]
[Result "1-0"]
[Round "04"]
[TimeControl "180+1"]
[Date "2021.09.21"]
[WhiteClock "0:00:05"]
[BlackClock "0:00:01"]

1. e4 {[%clk 0:02:54]}  e5 {[%clk 0:02:59]} 2. Nf3 {[%clk 0:02:54]}  Nc6 {[%clk 0:03:00]} 3. Bc4 {[%clk 0:02:54]}  Bc5 {[%clk 0:02:57]} 4. d3 {[%clk 0:02:54]}  Nf6 {[%clk 0:02:57]} 5. h3 {[%clk 0:02:53]}  a6 {[%clk 0:02:57]} 6. Be3 {[%clk 0:02:53]}  Bxe3 {[%clk 0:02:50]} 7. fxe3 {[%clk 0:02:53]}  d5 {[%clk 0:02:49]} 8. exd5 {[%clk 0:02:50]}  Nxd5 {[%clk 0:02:50]} 9. Qd2 {[%clk 0:02:33]}  O-O {[%clk 0:02:49]} 10. O-O {[%clk 0:02:31]}  Be6 {[%clk 0:02:46]} 11. Bb3 {[%clk 0:02:31]}  h6 {[%clk 0:02:35]} 12. Nc3 {[%clk 0:02:28]}  Qd7 {[%clk 0:02:31]} 13. Rf2 {[%clk 0:02:13]}  Nxc3 {[%clk 0:02:25]} 14. Qxc3 {[%clk 0:02:10]}  Bxb3 {[%clk 0:02:23]} 15. axb3 {[%clk 0:02:09]}  Rae8 {[%clk 0:02:22]} 16. e4 {[%clk 0:02:02]}  Kh7 {[%clk 0:02:18]} 17. Nh4 {[%clk 0:01:54]}  Nd4 {[%clk 0:02:17]} 18. Raf1 {[%clk 0:01:47]}  Re6 {[%clk 0:02:07]} 19. Qd2 {[%clk 0:01:30]}  Rc6 {[%clk 0:01:57]} 20. Qd1 {[%clk 0:01:24]}  g6 {[%clk 0:01:39]} 21. Nf3 {[%clk 0:01:19]}  Nxf3+ {[%clk 0:01:36]} 22. Rxf3 {[%clk 0:01:12]}  Kg7 {[%clk 0:01:35]} 23. Kh2 {[%clk 0:01:09]}  Qe7 {[%clk 0:01:30]} 24. R1f2 {[%clk 0:01:04]}  Rd6 {[%clk 0:01:26]} 25. Qf1 {[%clk 0:01:00]}  c5 {[%clk 0:01:23]} 26. Qa1 {[%clk 0:00:58]}  b5 {[%clk 0:01:11]} 27. Qa5 {[%clk 0:00:55]}  Rc6 {[%clk 0:01:10]} 28. Qd2 {[%clk 0:00:42]}  c4 {[%clk 0:00:57]} 29. bxc4 {[%clk 0:00:39]}  bxc4 {[%clk 0:00:58]} 30. d4 {[%clk 0:00:39]}  exd4 {[%clk 0:00:56]} 31. Qxd4+ {[%clk 0:00:38]}  Kg8 {[%clk 0:00:56]} 32. Qd5 {[%clk 0:00:24]}  Re6 {[%clk 0:00:30]} 33. Qxc4 {[%clk 0:00:22]}  Rxe4 {[%clk 0:00:29]} 34. Qxa6 {[%clk 0:00:19]}  Qe5+ {[%clk 0:00:29]} 35. Kg1 {[%clk 0:00:14]}  Re1+ {[%clk 0:00:21]} 36. Rf1 {[%clk 0:00:15]}  Rxf1+ {[%clk 0:00:21]} 37. Qxf1 {[%clk 0:00:14]}  Qxb2 {[%clk 0:00:21]} 38. c4 {[%clk 0:00:14]}  Qd4+ {[%clk 0:00:21]} 39. Kh2 {[%clk 0:00:14]}  Qe5+ {[%clk 0:00:18]} 40. Kh1 {[%clk 0:00:14]}  Qe6 {[%clk 0:00:18]} 41. Rc3 {[%clk 0:00:13]}  Rc8 {[%clk 0:00:15]} 42. c5 {[%clk 0:00:14]}  Qe5 {[%clk 0:00:15]} 43. Qc1 {[%clk 0:00:13]}  Rc6 {[%clk 0:00:15]} 44. Rc2 {[%clk 0:00:13]}  Kh7 {[%clk 0:00:14]} 45. Kg1 {[%clk 0:00:12]}  Qd4+ {[%clk 0:00:14]} 46. Kh1 {[%clk 0:00:12]}  h5 {[%clk 0:00:14]} 47. Rc4 {[%clk 0:00:11]}  Qe5 {[%clk 0:00:13]} 48. Rc2 {[%clk 0:00:11]}  Kg7 {[%clk 0:00:13]} 49. Rc4 {[%clk 0:00:11]}  Qd5 {[%clk 0:00:11]} 50. Qc3+ {[%clk 0:00:10]}  Kh7 {[%clk 0:00:11]} 51. Qc2 {[%clk 0:00:09]}  Rf6 {[%clk 0:00:08]} 52. Qc1 {[%clk 0:00:06]}  Qd3 {[%clk 0:00:07]} 53. Rf4 {[%clk 0:00:06]}  Rxf4 {[%clk 0:00:03]} 54. Qxf4 {[%clk 0:00:07]}  Qd7 {[%clk 0:00:02]} 55. Qe5 {[%clk 0:00:06]}  Qc6 {[%clk 0:00:01]} 56. Qd4 {[%clk 0:00:05]}  Qb5 {[%clk 0:00:01]} 57. Qd5 {[%clk 0:00:05]}  Qf1+ {[%clk 0:00:01]} 58. Kh2 {[%clk 0:00:05]} 1-0


[Site "https://www.chess.com"]

[Event "Titled Tuesday Blitz September 21 2021"]
[White "Timmermans, Mark"]
[Black "Deac, Bogdan-Daniel"]
[WhiteFideId "1026399"]
[BlackFideId "1226380"]
[WhiteElo "2750"]
[BlackElo "2953"]
[Result "0-1"]
[Round "04"]
[TimeControl "180+1"]
[Date "2021.09.21"]
[WhiteClock "0:00:22"]
[BlackClock "0:00:56"]

1. b4 {[%clk 0:03:00]}  e5 {[%clk 0:02:50]} 2. Bb2 {[%clk 0:03:00]}  Bxb4 {[%clk 0:02:48]} 3. Bxe5 {[%clk 0:03:00]}  Nf6 {[%clk 0:02:48]} 4. Nc3 {[%clk 0:03:00]}  c6 {[%clk 0:02:34]} 5. a3 {[%clk 0:02:59]}  Ba5 {[%clk 0:02:33]} 6. Nf3 {[%clk 0:02:59]}  O-O {[%clk 0:02:24]} 7. e3 {[%clk 0:02:58]}  d6 {[%clk 0:02:23]} 8. Bxf6 {[%clk 0:02:58]}  Qxf6 {[%clk 0:02:23]} 9. Ne4 {[%clk 0:02:59]}  Qe7 {[%clk 0:02:21]} 10. Ng3 {[%clk 0:02:58]}  f5 {[%clk 0:02:17]} 11. Ne2 {[%clk 0:02:46]}  d5 {[%clk 0:02:06]} 12. c3 {[%clk 0:02:40]}  Nd7 {[%clk 0:02:03]} 13. Ned4 {[%clk 0:02:31]}  f4 {[%clk 0:01:54]} 14. Be2 {[%clk 0:02:28]}  fxe3 {[%clk 0:01:51]} 15. fxe3 {[%clk 0:02:28]}  Nf6 {[%clk 0:01:51]} 16. O-O {[%clk 0:02:27]}  Ne4 {[%clk 0:01:51]} 17. Bd3 {[%clk 0:02:27]}  Bg4 {[%clk 0:01:32]} 18. Qc2 {[%clk 0:02:19]}  c5 {[%clk 0:01:24]} 19. Nb3 {[%clk 0:02:12]}  Bc7 {[%clk 0:01:21]} 20. Be2 {[%clk 0:01:35]}  Qd6 {[%clk 0:01:00]} 21. d3 {[%clk 0:00:21]}  Bxf3 {[%clk 0:00:56]} 22. dxe4 {[%clk 0:00:21]}  Qxh2+ {[%clk 0:00:55]} 23. Kf2 {[%clk 0:00:22]}  Bg3# {[%clk 0:00:56]} 0-1


[Site "https://www.chess.com"]